[Event "December 5 Late 2023"]
[Site "https://www.chess.com"]
[Date "2023.12.05"]
[Round "8"]
[White "Fernandez Hernandez, Gerardo"]
[Black "Arnold, Ken"]
[Result "0-1"]
[Board "106"]
[TimeControl "180+1"]
[WhiteFideId "2207400"]
[BlackFideId "2056836"]
[WhiteElo "2219"]
[BlackElo "2424"]
[WhiteTeam "ESP"]
[BlackTeam "USA"]
[WhiteClock "0:00:00"]
[BlackClock "0:00:42"]

1. e4 {[%clk 0:03:00]}  c6 {[%clk 0:02:59]} 2. d4 {[%clk 0:03:00]}  d5 {[%clk 0:03:00]} 3. exd5 {[%clk 0:03:01]}  cxd5 {[%clk 0:02:59]} 4. c4 {[%clk 0:03:02]}  Nf6 {[%clk 0:03:00]} 5. Nc3 {[%clk 0:03:01]}  Nc6 {[%clk 0:03:00]} 6. Bf4 {[%clk 0:03:01]}  e6 {[%clk 0:02:58]} 7. c5 {[%clk 0:03:01]}  Be7 {[%clk 0:02:56]} 8. Nf3 {[%clk 0:03:01]}  O-O {[%clk 0:02:56]} 9. Bb5 {[%clk 0:03:01]}  Bd7 {[%clk 0:02:55]} 10. O-O {[%clk 0:03:00]}  b6 {[%clk 0:02:52]} 11. Bxc6 {[%clk 0:02:55]}  Bxc6 {[%clk 0:02:52]} 12. b4 {[%clk 0:02:55]}  bxc5 {[%clk 0:02:52]} 13. bxc5 {[%clk 0:02:55]}  Qa5 {[%clk 0:02:51]} 14. Qd2 {[%clk 0:02:50]}  Qa6 {[%clk 0:02:38]} 15. Ne5 {[%clk 0:02:35]}  Ne4 {[%clk 0:02:15]} 16. Qc2 {[%clk 0:02:17]}  f6 {[%clk 0:02:03]} 17. Nxc6 {[%clk 0:02:11]}  Qxc6 {[%clk 0:02:02]} 18. Nxe4 {[%clk 0:02:10]}  dxe4 {[%clk 0:02:02]} 19. Rae1 {[%clk 0:01:58]}  f5 {[%clk 0:02:00]} 20. f3 {[%clk 0:01:58]}  Bf6 {[%clk 0:01:57]} 21. Be5 {[%clk 0:01:40]}  Bxe5 {[%clk 0:01:56]} 22. dxe5 {[%clk 0:01:41]}  exf3 {[%clk 0:01:53]} 23. Rxf3 {[%clk 0:01:41]}  Rac8 {[%clk 0:01:52]} 24. Qb3 {[%clk 0:01:24]}  Qxc5+ {[%clk 0:01:49]} 25. Kh1 {[%clk 0:01:25]}  Qc4 {[%clk 0:01:48]} 26. Qxc4 {[%clk 0:01:15]}  Rxc4 {[%clk 0:01:47]} 27. Ra3 {[%clk 0:01:16]}  Rfc8 {[%clk 0:01:45]} 28. Rxa7 {[%clk 0:01:10]}  Rc1 {[%clk 0:01:37]} 29. Rg1 {[%clk 0:01:11]}  R8c5 {[%clk 0:01:33]} 30. a4 {[%clk 0:00:17]}  h6 {[%clk 0:01:32]} 31. a5 {[%clk 0:00:11]}  Kh7 {[%clk 0:01:32]} 32. a6 {[%clk 0:00:10]}  Rxg1+ {[%clk 0:01:31]} 33. Kxg1 {[%clk 0:00:11]}  Rxe5 {[%clk 0:01:31]} 34. Re7 {[%clk 0:00:10]}  f4 {[%clk 0:01:09]} 35. a7 {[%clk 0:00:09]}  Ra5 {[%clk 0:01:08]} 36. Kf2 {[%clk 0:00:07]}  Ra3 {[%clk 0:01:07]} 37. Rxe6 {[%clk 0:00:06]}  Rxa7 {[%clk 0:01:06]} 38. Re4 {[%clk 0:00:06]}  g5 {[%clk 0:01:05]} 39. Re6 {[%clk 0:00:06]}  Kg7 {[%clk 0:01:04]} 40. Kf3 {[%clk 0:00:06]}  Ra2 {[%clk 0:01:03]} 41. h4 {[%clk 0:00:05]}  Ra3+ {[%clk 0:01:02]} 42. Kf2 {[%clk 0:00:04]}  Rg3 {[%clk 0:00:56]} 43. hxg5 {[%clk 0:00:03]}  hxg5 {[%clk 0:00:56]} 44. Ra6 {[%clk 0:00:02]}  Rb3 {[%clk 0:00:54]} 45. Rc6 {[%clk 0:00:02]}  Kf7 {[%clk 0:00:52]} 46. Ra6 {[%clk 0:00:02]}  Re3 {[%clk 0:00:52]} 47. Rc6 {[%clk 0:00:01]}  Re6 {[%clk 0:00:52]} 48. Rc7+ {[%clk 0:00:01]}  Kf6 {[%clk 0:00:52]} 49. Rc5 {[%clk 0:00:01]}  Kg6 {[%clk 0:00:52]} 50. Rb5 {[%clk 0:00:01]}  Kh5 {[%clk 0:00:51]} 51. Kf3 {[%clk 0:00:01]}  Re3+ {[%clk 0:00:51]} 52. Kf2 {[%clk 0:00:01]}  Kg4 {[%clk 0:00:51]} 53. Rb6 {[%clk 0:00:01]}  Ra3 {[%clk 0:00:51]} 54. Rc6 {[%clk 0:00:01]}  Ra2+ {[%clk 0:00:50]} 55. Kf1 {[%clk 0:00:01]}  Kh4 {[%clk 0:00:49]} 56. Rc3 {[%clk 0:00:02]}  g4 {[%clk 0:00:48]} 57. Kg1 {[%clk 0:00:01]}  Ra1+ {[%clk 0:00:47]} 58. Kf2 {[%clk 0:00:01]}  g3+ {[%clk 0:00:47]} 59. Kf3 {[%clk 0:00:01]}  Rf1+ {[%clk 0:00:47]} 60. Ke4 {[%clk 0:00:02]}  Kg4 {[%clk 0:00:45]} 61. Rc8 {[%clk 0:00:01]}  Re1+ {[%clk 0:00:45]} 62. Kd3 {[%clk 0:00:01]}  Rg1 {[%clk 0:00:43]} 63. Rg8+ {[%clk 0:00:01]}  Kf5 {[%clk 0:00:43]} 64. Rf8+ {[%clk 0:00:01]}  Ke5 {[%clk 0:00:43]} 65. Re8+ {[%clk 0:00:02]}  Kd5 {[%clk 0:00:41]} 66. Rf8 {[%clk 0:00:03]}  Rf1 {[%clk 0:00:40]} 67. Rf7 {[%clk 0:00:02]}  Rf2 {[%clk 0:00:40]} 68. Rf8 {[%clk 0:00:02]}  Ke5 {[%clk 0:00:40]} 69. Re8+ {[%clk 0:00:03]}  Kd6 {[%clk 0:00:40]} 70. Rf8 {[%clk 0:00:03]}  Ke7 {[%clk 0:00:40]} 71. Rf5 {[%clk 0:00:04]}  Ke6 {[%clk 0:00:41]} 72. Rf8 {[%clk 0:00:04]}  f3 {[%clk 0:00:41]} 73. Rxf3 {[%clk 0:00:04]}  Rxf3+ {[%clk 0:00:41]} 74. gxf3 {[%clk 0:00:00]}  g2 {[%clk 0:00:42]} 0-1

[Event "December 5 Late 2023"]
[Site "https://www.chess.com"]
[Date "2023.12.05"]
[Round "8"]
[White "Zimmermann, Ulrich"]
[Black "Curtis, John"]
[Result "1/2-1/2"]
[Board "107"]
[TimeControl "180+1"]
[WhiteFideId "24654523"]
[BlackFideId "3200256"]
[WhiteElo "2419"]
[BlackElo "2220"]
[WhiteTeam "GER"]
[BlackTeam "AUS"]
[WhiteClock "0:00:23"]
[BlackClock "0:00:30"]

1. Nf3 {[%clk 0:03:00]}  d6 {[%clk 0:03:00]} 2. g3 {[%clk 0:03:01]}  e5 {[%clk 0:03:00]} 3. Bg2 {[%clk 0:03:02]}  e4 {[%clk 0:03:01]} 4. Nd4 {[%clk 0:03:01]}  f5 {[%clk 0:02:57]} 5. d3 {[%clk 0:03:00]}  d5 {[%clk 0:02:57]} 6. c4 {[%clk 0:03:00]}  Bb4+ {[%clk 0:02:49]} 7. Bd2 {[%clk 0:02:59]}  Bxd2+ {[%clk 0:02:47]} 8. Qxd2 {[%clk 0:02:56]}  Nf6 {[%clk 0:02:26]} 9. cxd5 {[%clk 0:02:53]}  Qxd5 {[%clk 0:02:19]} 10. dxe4 {[%clk 0:02:46]}  Nxe4 {[%clk 0:02:19]} 11. Nc3 {[%clk 0:02:38]}  Qe5 {[%clk 0:02:08]} 12. Nf3 {[%clk 0:02:24]}  Qxc3 {[%clk 0:02:02]} 13. bxc3 {[%clk 0:02:20]}  Nxd2 {[%clk 0:02:01]} 14. Nxd2 {[%clk 0:02:20]}  c6 {[%clk 0:02:00]} 15. Rb1 {[%clk 0:02:20]}  Nd7 {[%clk 0:01:59]} 16. Nc4 {[%clk 0:02:20]}  Nc5 {[%clk 0:01:53]} 17. O-O {[%clk 0:02:11]}  Ke7 {[%clk 0:01:44]} 18. Rfd1 {[%clk 0:02:10]}  Rd8 {[%clk 0:01:38]} 19. Rxd8 {[%clk 0:02:08]}  Kxd8 {[%clk 0:01:38]} 20. Rd1+ {[%clk 0:02:08]}  Kc7 {[%clk 0:01:39]} 21. Ne5 {[%clk 0:01:47]}  Be6 {[%clk 0:01:38]} 22. a3 {[%clk 0:01:46]}  Kb6 {[%clk 0:01:26]} 23. e3 {[%clk 0:01:40]}  Ka5 {[%clk 0:01:26]} 24. Rb1 {[%clk 0:01:36]}  Ka4 {[%clk 0:01:25]} 25. Bf1 {[%clk 0:01:24]}  Kxa3 {[%clk 0:01:22]} 26. Bc4 {[%clk 0:01:24]}  Bxc4 {[%clk 0:01:19]} 27. Nxc4+ {[%clk 0:01:25]}  Ka2 {[%clk 0:01:17]} 28. Rb2+ {[%clk 0:01:23]}  Ka1 {[%clk 0:01:17]} 29. Rb4 {[%clk 0:01:23]}  Rd8 {[%clk 0:01:11]} 30. Kf1 {[%clk 0:01:21]}  Rd1+ {[%clk 0:01:10]} 31. Ke2 {[%clk 0:01:22]}  Rc1 {[%clk 0:01:09]} 32. Kd2 {[%clk 0:01:20]}  Rf1 {[%clk 0:01:08]} 33. Ke2 {[%clk 0:01:04]}  Rc1 {[%clk 0:01:07]} 34. Kd2 {[%clk 0:01:01]}  Rf1 {[%clk 0:01:00]} 35. Kc2 {[%clk 0:00:43]}  Rxf2+ {[%clk 0:00:58]} 36. Nd2 {[%clk 0:00:44]}  b5 {[%clk 0:00:45]} 37. Rb1+ {[%clk 0:00:30]}  Ka2 {[%clk 0:00:45]} 38. Rb2+ {[%clk 0:00:29]}  Ka3 {[%clk 0:00:44]} 39. Rb1 {[%clk 0:00:28]}  Ka2 {[%clk 0:00:34]} 40. Rb2+ {[%clk 0:00:22]}  Ka3 {[%clk 0:00:32]} 41. Rb1 {[%clk 0:00:23]}  Ka2 {[%clk 0:00:30]} 1/2-1/2

[Event "December 5 Late 2023"]
[Site "https://www.chess.com"]
[Date "2023.12.05"]
[Round "8"]
[White "Lymar, Vladislav"]
[Black "Gerbelli Neto, Eduardo"]
[Result "0-1"]
[Board "109"]
[TimeControl "180+1"]
[WhiteFideId "14162180"]
[BlackFideId "2103281"]
[WhiteElo "2569"]
[BlackElo "2331"]
[WhiteTeam "UKR"]
[BlackTeam "BRA"]
[WhiteClock "0:00:01"]
[BlackClock "0:00:21"]

1. e4 {[%clk 0:03:00]}  e5 {[%clk 0:02:59]} 2. Nf3 {[%clk 0:03:01]}  Nc6 {[%clk 0:02:59]} 3. Nc3 {[%clk 0:03:02]}  Nf6 {[%clk 0:02:58]} 4. Nxe5 {[%clk 0:03:02]}  Nxe5 {[%clk 0:02:58]} 5. d4 {[%clk 0:03:03]}  Ng6 {[%clk 0:02:59]} 6. e5 {[%clk 0:03:02]}  Ng8 {[%clk 0:02:59]} 7. Bc4 {[%clk 0:03:01]}  d5 {[%clk 0:03:00]} 8. Bxd5 {[%clk 0:02:59]}  c6 {[%clk 0:03:00]} 9. Be4 {[%clk 0:02:45]}  Bb4 {[%clk 0:02:54]} 10. h4 {[%clk 0:02:32]}  Be6 {[%clk 0:02:49]} 11. h5 {[%clk 0:02:31]}  N6e7 {[%clk 0:02:50]} 12. h6 {[%clk 0:02:26]}  g6 {[%clk 0:02:48]} 13. Bg5 {[%clk 0:02:25]}  Qa5 {[%clk 0:02:45]} 14. Qd3 {[%clk 0:02:15]}  Nd5 {[%clk 0:02:42]} 15. O-O {[%clk 0:02:07]}  Bxc3 {[%clk 0:02:41]} 16. bxc3 {[%clk 0:02:03]}  Qxc3 {[%clk 0:02:41]} 17. Qd1 {[%clk 0:02:01]}  Nge7 {[%clk 0:02:38]} 18. Rb1 {[%clk 0:02:01]}  b6 {[%clk 0:02:20]} 19. Rb3 {[%clk 0:01:52]}  Qc4 {[%clk 0:02:10]} 20. Re1 {[%clk 0:01:32]}  Nc3 {[%clk 0:02:05]} 21. Qf3 {[%clk 0:01:26]}  Nxe4 {[%clk 0:02:03]} 22. Rxe4 {[%clk 0:01:18]}  Nd5 {[%clk 0:01:53]} 23. Bf6 {[%clk 0:01:14]}  Rg8 {[%clk 0:01:49]} 24. c3 {[%clk 0:01:08]}  Bf5 {[%clk 0:01:33]} 25. Re1 {[%clk 0:01:05]}  Kd7 {[%clk 0:01:29]} 26. g4 {[%clk 0:01:04]}  Be6 {[%clk 0:01:28]} 27. Qg3 {[%clk 0:00:56]}  a5 {[%clk 0:01:14]} 28. f4 {[%clk 0:00:50]}  a4 {[%clk 0:01:15]} 29. Ra3 {[%clk 0:00:45]}  b5 {[%clk 0:01:08]} 30. Rd1 {[%clk 0:00:35]}  b4 {[%clk 0:01:07]} 31. cxb4 {[%clk 0:00:36]}  Nxb4 {[%clk 0:00:51]} 32. Kh2 {[%clk 0:00:21]}  Qc2+ {[%clk 0:00:50]} 33. Rd2 {[%clk 0:00:13]}  Qxd2+ {[%clk 0:00:50]} 34. Kh3 {[%clk 0:00:14]}  Bd5 {[%clk 0:00:48]} 35. Rc3 {[%clk 0:00:09]}  Rab8 {[%clk 0:00:33]} 36. a3 {[%clk 0:00:09]}  Nc2 {[%clk 0:00:33]} 37. Rc5 {[%clk 0:00:09]}  Ne3 {[%clk 0:00:32]} 38. Kh4 {[%clk 0:00:09]}  Rb3 {[%clk 0:00:32]} 39. Kg5 {[%clk 0:00:08]}  Nf1 {[%clk 0:00:30]} 40. Qg1 {[%clk 0:00:08]}  Ne3 {[%clk 0:00:27]} 41. Bg7 {[%clk 0:00:04]}  Be6 {[%clk 0:00:27]} 42. Bf6 {[%clk 0:00:03]}  Nd5 {[%clk 0:00:27]} 43. Bg7 {[%clk 0:00:03]}  Qxf4+ {[%clk 0:00:27]} 44. Kh4 {[%clk 0:00:04]}  Rb2 {[%clk 0:00:24]} 45. Kh3 {[%clk 0:00:01]}  Qf3+ {[%clk 0:00:23]} 46. Kh4 {[%clk 0:00:02]}  Rf2 {[%clk 0:00:22]} 47. Ra5 {[%clk 0:00:01]}  g5+ {[%clk 0:00:20]} 48. Kxg5 {[%clk 0:00:01]}  Qf4+ {[%clk 0:00:20]} 49. Kh4 {[%clk 0:00:02]}  Rh2+ {[%clk 0:00:20]} 50. Qxh2 {[%clk 0:00:03]}  Qxh2+ {[%clk 0:00:20]} 51. Kg5 {[%clk 0:00:04]}  Qd2+ {[%clk 0:00:20]} 52. Kh5 {[%clk 0:00:01]}  Qxa5 {[%clk 0:00:21]} 0-1

[Event "December 5 Late 2023"]
[Site "https://www.chess.com"]
[Date "2023.12.05"]
[Round "8"]
[White "Hajiyev, Kanan"]
[Black "Travadon, Loic"]
[Result "1-0"]
[Board "110"]
[TimeControl "180+1"]
[WhiteFideId "13404148"]
[BlackFideId "26092131"]
[WhiteElo "2508"]
[BlackElo "2162"]
[WhiteTeam "AZE"]
[BlackTeam "FRA"]
[WhiteClock "0:02:23"]
[BlackClock "0:01:52"]

1. d4 {[%clk 0:03:00]}  d5 {[%clk 0:02:58]} 2. Nf3 {[%clk 0:03:01]}  Nf6 {[%clk 0:02:57]} 3. c4 {[%clk 0:03:02]}  c6 {[%clk 0:02:56]} 4. cxd5 {[%clk 0:03:03]}  cxd5 {[%clk 0:02:56]} 5. Nc3 {[%clk 0:03:04]}  Nc6 {[%clk 0:02:53]} 6. Bg5 {[%clk 0:03:05]}  e6 {[%clk 0:02:50]} 7. e3 {[%clk 0:03:05]}  Bb4 {[%clk 0:02:50]} 8. Bd3 {[%clk 0:03:04]}  h6 {[%clk 0:02:49]} 9. Bh4 {[%clk 0:03:03]}  O-O {[%clk 0:02:48]} 10. O-O {[%clk 0:03:03]}  a6 {[%clk 0:02:45]} 11. Ne5 {[%clk 0:03:03]}  Be7 {[%clk 0:02:41]} 12. f4 {[%clk 0:03:01]}  Qd6 {[%clk 0:02:33]} 13. Qf3 {[%clk 0:02:58]}  b5 {[%clk 0:02:32]} 14. g4 {[%clk 0:02:48]}  Bb7 {[%clk 0:02:30]} 15. g5 {[%clk 0:02:48]}  Nd7 {[%clk 0:02:23]} 16. gxh6 {[%clk 0:02:24]}  Bxh4 {[%clk 0:02:22]} 17. Qh5 {[%clk 0:02:25]}  f5 {[%clk 0:01:54]} 18. h7+ {[%clk 0:02:22]}  Kh8 {[%clk 0:01:52]} 19. Ng6# {[%clk 0:02:23]} 1-0

[Event "December 5 Late 2023"]
[Site "https://www.chess.com"]
[Date "2023.12.05"]
[Round "8"]
[White "Pein, Jonathan"]
[Black "Floresvillar Gonzalez, Luis Migu"]
[Result "1-0"]
[Board "111"]
[TimeControl "180+1"]
[WhiteFideId "417092"]
[BlackFideId "5100542"]
[WhiteElo "2372"]
[BlackElo "2210"]
[WhiteTeam "ENG"]
[BlackTeam "MEX"]
[WhiteClock "0:00:08"]
[BlackClock "0:00:00"]

1. c4 {[%clk 0:03:00]}  c6 {[%clk 0:02:38]} 2. Nf3 {[%clk 0:02:56]}  d5 {[%clk 0:02:39]} 3. e3 {[%clk 0:02:57]}  Bf5 {[%clk 0:02:38]} 4. b3 {[%clk 0:02:52]}  e6 {[%clk 0:02:36]} 5. Nc3 {[%clk 0:02:53]}  Nf6 {[%clk 0:02:34]} 6. Bb2 {[%clk 0:02:49]}  Be7 {[%clk 0:02:34]} 7. Nh4 {[%clk 0:02:41]}  Be4 {[%clk 0:02:30]} 8. d3 {[%clk 0:02:35]}  Bg6 {[%clk 0:02:11]} 9. Nxg6 {[%clk 0:02:35]}  hxg6 {[%clk 0:02:10]} 10. g3 {[%clk 0:02:36]}  Nbd7 {[%clk 0:02:09]} 11. Bg2 {[%clk 0:02:36]}  Qc7 {[%clk 0:02:06]} 12. Rc1 {[%clk 0:02:34]}  a5 {[%clk 0:02:04]} 13. cxd5 {[%clk 0:02:31]}  exd5 {[%clk 0:02:04]} 14. Nxd5 {[%clk 0:02:31]}  Nxd5 {[%clk 0:02:03]} 15. Bxd5 {[%clk 0:02:32]}  Bf6 {[%clk 0:01:57]} 16. Bxf6 {[%clk 0:02:10]}  gxf6 {[%clk 0:01:56]} 17. O-O {[%clk 0:02:02]}  a4 {[%clk 0:01:49]} 18. d4 {[%clk 0:02:02]}  Ra5 {[%clk 0:01:41]} 19. Bf3 {[%clk 0:01:56]}  axb3 {[%clk 0:01:36]} 20. Qxb3 {[%clk 0:01:54]}  Rf5 {[%clk 0:01:35]} 21. Be2 {[%clk 0:01:34]}  Nf8 {[%clk 0:01:20]} 22. d5 {[%clk 0:01:33]}  Nh7 {[%clk 0:00:58]} 23. dxc6 {[%clk 0:01:26]}  bxc6 {[%clk 0:00:58]} 24. e4 {[%clk 0:01:19]}  Re5 {[%clk 0:00:53]} 25. Bb5 {[%clk 0:01:09]}  O-O {[%clk 0:00:45]} 26. Bxc6 {[%clk 0:01:06]}  Rb8 {[%clk 0:00:34]} 27. Qc3 {[%clk 0:00:57]}  Rc8 {[%clk 0:00:30]} 28. Qe3 {[%clk 0:00:36]}  Qd6 {[%clk 0:00:21]} 29. Bd5 {[%clk 0:00:30]}  Rxc1 {[%clk 0:00:20]} 30. Rxc1 {[%clk 0:00:31]}  Kg7 {[%clk 0:00:18]} 31. h4 {[%clk 0:00:29]}  g5 {[%clk 0:00:17]} 32. Rc6 {[%clk 0:00:26]}  Qd7 {[%clk 0:00:16]} 33. hxg5 {[%clk 0:00:25]}  Nxg5 {[%clk 0:00:12]} 34. f4 {[%clk 0:00:22]}  Qxd5 {[%clk 0:00:10]} 35. exd5 {[%clk 0:00:20]}  Rxe3 {[%clk 0:00:09]} 36. fxg5 {[%clk 0:00:20]}  Rxg3+ {[%clk 0:00:09]} 37. Kf2 {[%clk 0:00:21]}  Ra3 {[%clk 0:00:08]} 38. gxf6+ {[%clk 0:00:20]}  Kg6 {[%clk 0:00:08]} 39. Ke2 {[%clk 0:00:10]}  Rxa2+ {[%clk 0:00:07]} 40. Kd3 {[%clk 0:00:11]}  Ra4 {[%clk 0:00:00]} 41. Kc3 {[%clk 0:00:08]} 1-0

[Event "December 5 Late 2023"]
[Site "https://www.chess.com"]
[Date "2023.12.05"]
[Round "8"]
[White "Figorito, Nick"]
[Black "Einarsson, Halldor Gretar"]
[Result "1-0"]
[Board "113"]
[TimeControl "180+1"]
[WhiteFideId "30923689"]
[BlackFideId "2300150"]
[WhiteElo "2364"]
[BlackElo "2210"]
[WhiteTeam "USA"]
[BlackTeam "ISL"]
[WhiteClock "0:00:13"]
[BlackClock "0:00:00"]

1. Nf3 {[%clk 0:03:00]}  Nf6 {[%clk 0:02:58]} 2. g3 {[%clk 0:03:01]}  g6 {[%clk 0:02:58]} 3. Bg2 {[%clk 0:03:02]}  Bg7 {[%clk 0:02:58]} 4. O-O {[%clk 0:03:03]}  O-O {[%clk 0:02:58]} 5. c4 {[%clk 0:03:03]}  c5 {[%clk 0:02:58]} 6. d4 {[%clk 0:03:03]}  cxd4 {[%clk 0:02:57]} 7. Nxd4 {[%clk 0:03:04]}  Nc6 {[%clk 0:02:56]} 8. Nc2 {[%clk 0:03:04]}  d6 {[%clk 0:02:52]} 9. Nc3 {[%clk 0:03:04]}  Be6 {[%clk 0:02:51]} 10. b3 {[%clk 0:03:05]}  d5 {[%clk 0:02:46]} 11. cxd5 {[%clk 0:03:03]}  Nxd5 {[%clk 0:02:46]} 12. Nxd5 {[%clk 0:03:03]}  Bxa1 {[%clk 0:02:27]} 13. Nxa1 {[%clk 0:03:04]}  Qa5 {[%clk 0:02:16]} 14. Qd2 {[%clk 0:02:00]}  Qc5 {[%clk 0:01:19]} 15. Bb2 {[%clk 0:01:46]}  Rfd8 {[%clk 0:01:11]} 16. Qh6 {[%clk 0:01:43]}  f6 {[%clk 0:00:50]} 17. Rc1 {[%clk 0:01:22]}  Qd6 {[%clk 0:00:48]} 18. Nf4 {[%clk 0:01:00]}  Bf7 {[%clk 0:00:43]} 19. Nd3 {[%clk 0:00:37]}  Rac8 {[%clk 0:00:33]} 20. Nc2 {[%clk 0:00:34]}  Qe6 {[%clk 0:00:21]} 21. Bh3 {[%clk 0:00:28]}  Qxe2 {[%clk 0:00:17]} 22. Bxc8 {[%clk 0:00:28]}  Rxd3 {[%clk 0:00:16]} 23. Bxb7 {[%clk 0:00:20]}  Ne5 {[%clk 0:00:07]} 24. Bxe5 {[%clk 0:00:17]}  Qxe5 {[%clk 0:00:07]} 25. Ne3 {[%clk 0:00:13]}  Qb2 {[%clk 0:00:00]} 26. Rc8+ {[%clk 0:00:13]} 1-0

[Event "December 5 Late 2023"]
[Site "https://www.chess.com"]
[Date "2023.12.05"]
[Round "8"]
[White "Mesa Cruz, Juan Carlos"]
[Black "Vila Dupla, Aurelio"]
[Result "1-0"]
[Board "114"]
[TimeControl "180+1"]
[WhiteFideId "6423400"]
[BlackFideId "2203383"]
[WhiteElo "2364"]
[BlackElo "2207"]
[WhiteTeam "DOM"]
[BlackTeam "ESP"]
[WhiteClock "0:00:04"]
[BlackClock "0:00:00"]

1. e4 {[%clk 0:03:00]}  c5 {[%clk 0:02:58]} 2. Nf3 {[%clk 0:02:55]}  d6 {[%clk 0:02:58]} 3. d4 {[%clk 0:02:55]}  cxd4 {[%clk 0:02:58]} 4. Nxd4 {[%clk 0:02:56]}  Nf6 {[%clk 0:02:57]} 5. Nc3 {[%clk 0:02:55]}  g6 {[%clk 0:02:57]} 6. Be3 {[%clk 0:02:53]}  Bg7 {[%clk 0:02:55]} 7. f3 {[%clk 0:02:53]}  O-O {[%clk 0:02:54]} 8. Qd2 {[%clk 0:02:51]}  Nc6 {[%clk 0:02:54]} 9. g4 {[%clk 0:02:51]}  Be6 {[%clk 0:02:51]} 10. h4 {[%clk 0:02:48]}  d5 {[%clk 0:02:47]} 11. g5 {[%clk 0:02:38]}  Nh5 {[%clk 0:02:23]} 12. Nxe6 {[%clk 0:02:30]}  fxe6 {[%clk 0:02:22]} 13. exd5 {[%clk 0:02:29]}  exd5 {[%clk 0:02:22]} 14. Nxd5 {[%clk 0:02:24]}  Ng3 {[%clk 0:01:50]} 15. Rg1 {[%clk 0:01:45]}  Nxf1 {[%clk 0:01:48]} 16. Rxf1 {[%clk 0:01:46]}  Bxb2 {[%clk 0:01:43]} 17. Rb1 {[%clk 0:01:42]}  Be5 {[%clk 0:01:23]} 18. f4 {[%clk 0:01:40]}  e6 {[%clk 0:01:03]} 19. fxe5 {[%clk 0:01:02]}  Rxf1+ {[%clk 0:01:01]} 20. Kxf1 {[%clk 0:01:02]}  exd5 {[%clk 0:01:02]} 21. Rxb7 {[%clk 0:00:54]}  d4 {[%clk 0:00:46]} 22. Bf2 {[%clk 0:00:44]}  Qd5 {[%clk 0:00:45]} 23. Qd3 {[%clk 0:00:09]}  Rf8 {[%clk 0:00:41]} 24. Qb3 {[%clk 0:00:02]}  Qxb3 {[%clk 0:00:29]} 25. axb3 {[%clk 0:00:03]}  Nxe5 {[%clk 0:00:29]} 26. Ke2 {[%clk 0:00:04]}  d3+ {[%clk 0:00:22]} 27. cxd3 {[%clk 0:00:04]}  Nxd3 {[%clk 0:00:22]} 28. Bd4 {[%clk 0:00:03]}  Nf4+ {[%clk 0:00:16]} 29. Kd2 {[%clk 0:00:02]}  Ne6 {[%clk 0:00:17]} 30. Bc3 {[%clk 0:00:02]}  Rd8+ {[%clk 0:00:17]} 31. Kc2 {[%clk 0:00:02]}  Rc8 {[%clk 0:00:08]} 32. Rxa7 {[%clk 0:00:03]}  Nd4+ {[%clk 0:00:07]} 33. Kb2 {[%clk 0:00:03]}  Ne2 {[%clk 0:00:07]} 34. Rg7+ {[%clk 0:00:03]}  Kf8 {[%clk 0:00:07]} 35. Be5 {[%clk 0:00:04]}  Rc6 {[%clk 0:00:02]} 36. Rxh7 {[%clk 0:00:03]}  Re6 {[%clk 0:00:00]} 37. Bf6 {[%clk 0:00:04]} 1-0

[Event "December 5 Late 2023"]
[Site "https://www.chess.com"]
[Date "2023.12.05"]
[Round "8"]
[White "Su, Dion"]
[Black "Keller, Peter"]
[Result "1-0"]
[Board "115"]
[TimeControl "180+1"]
[WhiteFideId "2029731"]
[BlackFideId "1272105"]
[WhiteElo "2361"]
[BlackElo "2185"]
[WhiteTeam "USA"]
[BlackTeam "GER"]
[WhiteClock "0:00:26"]
[BlackClock "0:00:24"]

1. e4 {[%clk 0:03:00]}  c5 {[%clk 0:02:49]} 2. Nf3 {[%clk 0:02:59]}  e6 {[%clk 0:02:49]} 3. d4 {[%clk 0:02:59]}  cxd4 {[%clk 0:02:50]} 4. Nxd4 {[%clk 0:03:00]}  Nc6 {[%clk 0:02:51]} 5. Nc3 {[%clk 0:03:00]}  Qc7 {[%clk 0:02:51]} 6. Ndb5 {[%clk 0:02:59]}  Qb8 {[%clk 0:02:49]} 7. g3 {[%clk 0:03:00]}  a6 {[%clk 0:02:49]} 8. Nd4 {[%clk 0:03:00]}  Qc7 {[%clk 0:02:43]} 9. Bg2 {[%clk 0:03:00]}  d6 {[%clk 0:02:42]} 10. O-O {[%clk 0:02:57]}  Bd7 {[%clk 0:02:42]} 11. Be3 {[%clk 0:02:55]}  Nf6 {[%clk 0:02:40]} 12. a4 {[%clk 0:02:54]}  h5 {[%clk 0:02:39]} 13. h3 {[%clk 0:02:47]}  Be7 {[%clk 0:02:35]} 14. f4 {[%clk 0:02:34]}  Na5 {[%clk 0:02:32]} 15. e5 {[%clk 0:02:14]}  dxe5 {[%clk 0:02:26]} 16. fxe5 {[%clk 0:02:14]}  Qxe5 {[%clk 0:02:21]} 17. Bf4 {[%clk 0:02:11]}  Qc5 {[%clk 0:02:19]} 18. Kh1 {[%clk 0:02:08]}  e5 {[%clk 0:02:12]} 19. Be3 {[%clk 0:02:01]}  exd4 {[%clk 0:02:11]} 20. Bxd4 {[%clk 0:02:02]}  Qc7 {[%clk 0:02:01]} 21. Bxf6 {[%clk 0:01:55]}  Bxf6 {[%clk 0:02:01]} 22. Nd5 {[%clk 0:01:56]}  Qxg3 {[%clk 0:01:59]} 23. Qe2+ {[%clk 0:01:54]}  Be6 {[%clk 0:01:58]} 24. Nxf6+ {[%clk 0:01:34]}  gxf6 {[%clk 0:01:46]} 25. Rxf6 {[%clk 0:01:34]}  O-O-O {[%clk 0:01:38]} 26. b4 {[%clk 0:01:31]}  Nc6 {[%clk 0:01:37]} 27. b5 {[%clk 0:01:25]}  Nd4 {[%clk 0:01:21]} 28. Qf1 {[%clk 0:01:13]}  a5 {[%clk 0:00:54]} 29. c3 {[%clk 0:00:35]}  Nc2 {[%clk 0:00:47]} 30. Qg1 {[%clk 0:00:32]}  Rd2 {[%clk 0:00:36]} 31. Bxb7+ {[%clk 0:00:31]}  Kxb7 {[%clk 0:00:36]} 32. Qxg3 {[%clk 0:00:32]}  Nxa1 {[%clk 0:00:36]} 33. Rxe6 {[%clk 0:00:26]}  fxe6 {[%clk 0:00:25]} 34. Qg7+ {[%clk 0:00:25]}  Kb6 {[%clk 0:00:24]} 35. Qxh8 {[%clk 0:00:26]} 1-0

[Event "December 5 Late 2023"]
[Site "https://www.chess.com"]
[Date "2023.12.05"]
[Round "8"]
[White "Duncan, Chris R"]
[Black "Nery Junior, Jose Antonio"]
[Result "0-1"]
[Board "116"]
[TimeControl "180+1"]
[WhiteFideId "403091"]
[BlackFideId "2104822"]
[WhiteElo "2205"]
[BlackElo "2339"]
[WhiteTeam "ENG"]
[BlackTeam "BRA"]
[WhiteClock "0:00:00"]
[BlackClock "0:00:58"]

1. e4 {[%clk 0:03:00]}  c5 {[%clk 0:02:52]} 2. Nf3 {[%clk 0:02:52]}  d6 {[%clk 0:02:15]} 3. d4 {[%clk 0:02:49]}  cxd4 {[%clk 0:02:16]} 4. Nxd4 {[%clk 0:02:49]}  Nf6 {[%clk 0:02:17]} 5. Nc3 {[%clk 0:02:48]}  a6 {[%clk 0:02:15]} 6. Bg5 {[%clk 0:02:39]}  e6 {[%clk 0:02:15]} 7. f4 {[%clk 0:02:38]}  Nbd7 {[%clk 0:02:16]} 8. Qf3 {[%clk 0:02:37]}  Qc7 {[%clk 0:02:14]} 9. O-O-O {[%clk 0:02:37]}  b5 {[%clk 0:02:12]} 10. Kb1 {[%clk 0:02:33]}  Bb7 {[%clk 0:02:09]} 11. Bd3 {[%clk 0:02:12]}  b4 {[%clk 0:02:06]} 12. Na4 {[%clk 0:02:10]}  Rc8 {[%clk 0:02:03]} 13. Rhe1 {[%clk 0:01:55]}  Be7 {[%clk 0:01:58]} 14. g4 {[%clk 0:01:49]}  Nc5 {[%clk 0:01:55]} 15. b3 {[%clk 0:00:42]}  Nxa4 {[%clk 0:01:52]} 16. bxa4 {[%clk 0:00:43]}  d5 {[%clk 0:01:48]} 17. Bxf6 {[%clk 0:00:19]}  gxf6 {[%clk 0:01:40]} 18. exd5 {[%clk 0:00:12]}  Bxd5 {[%clk 0:01:41]} 19. Be4 {[%clk 0:00:12]}  Bxe4 {[%clk 0:01:27]} 20. Qxe4 {[%clk 0:00:12]}  O-O {[%clk 0:01:28]} 21. Nxe6 {[%clk 0:00:09]}  fxe6 {[%clk 0:01:26]} 22. Qxe6+ {[%clk 0:00:09]}  Rf7 {[%clk 0:01:26]} 23. Re2 {[%clk 0:00:09]}  Bf8 {[%clk 0:01:14]} 24. g5 {[%clk 0:00:07]}  fxg5 {[%clk 0:01:00]} 25. fxg5 {[%clk 0:00:00]}  Rd8 {[%clk 0:00:58]} 0-1